{"text_format":"1","workbook":"xlsx","n_sheets":13,"sheets":["кмкец","кмцрп","кмкоц","кмкл17","чорноб","центр хірургії ока","цсм","кцткм","кмцдн","академія здоров","кмпл","кмтл1","кмкшвл"],"not_rendered":{"charts":0,"images":0,"macros":1,"external_links":0,"defined_names":12,"comments":0,"pivot_tables":0},"unopened":[],"bounds":{"document_bytes":16777216,"sheet_cells":100000,"rows_first":2000,"rows_last":500,"rows_between":2000,"halvings":0,"cell_chars":16384,"cell_head_chars":4096},"cells_cut":1,"cells_raw":0,"read":"whole","date_system":"1900"}

{"sheet":"кмкец","index":0,"n_rows":38,"n_cols":13,"rows_kept":38,"cut":false,"hidden":false,"merged":[[34,6,34,7],[36,6,36,7],[0,12,0,14],[1,12,1,15],[2,1,2,9],[3,0,3,10],[4,0,5,0],[4,1,5,1],[4,2,4,4],[4,5,5,5],[4,6,4,9],[4,10,5,10]]}
[null,null,null,null,null,null,null,null,null,null,null,null,"          Додаток до листа"]
[null,null,null,null,null,null,null,null,null,null,null,null,"         від ________ 2020 № ______"]
[null,"ІНФОРМАЦІЯ                                                                                                                                                                                                                                                                                                                                                                                                                    про надходження і використання благодійних пожертв від фізичних та юридичних осіб                                                                                                                                                                 КНП  Київський міський клінічний ендокринологічний центр за   3 квартал  2020  року "]
["                                                                                                                                            найменування закладу охорони здоров′я"]
["№ пп","Найменування юридичної особи (або позначення фізичної особи)","Благодійні пожертви, що були отримані закладом охорони здоров'я від фізичних та юридичних осіб",null,null,"Всього отримано благодійних пожертв, тис. грн","Використання закладом охорони здоров'я благодійних пожертв, отриманих у грошовій (товари і послуг) формі",null,null,null,"Залишок невикористаних грошових коштів, товарів та послуг на кінець звітного періоду,            тис. грн"]
[null,null,"В грошовій форм, тис. грн","В  натуральній формі (товари і послуги),    тис. грн","Перелік товарів і послуг в натуральній формі (канцтовари, господарські товари, будівельні товари, медикаменти та перев'язувальні матеріали, продукти харчування, м\"який інвентар, основні засоби та інші)",null,"Напрямки використання у грошовій формі (стаття витрат)","Сума,          тис. грн","Перелік використаних товарів та послуг у натуральній формі  (канцтовари, господарські товари, будівельні товари, медикаменти та перев'язувальні матеріали, продукти харчування, м\"який інвентар, основні засоби та інші)","Сума,          тис. грн"]
[1,"ФОП\"Маринець\"",null,12.8,"компьютери",{"$f":"SUM(C7,D7)","v":12.8},null,null,"компьютери",12.8]
[2,"Епіцентр К",null,71.099999999999994,"господ.товари",{"$f":"SUM(C8,D8)","v":71.099999999999994},null,null,"ліноліум",6]
[null,"Епіцентр К",null,null,null,0,null,null,"лампи світильні",8.1999999999999993]
[null,"Епіцентр К",null,null,null,0,null,null,"світильники",1.3]
[null,"Епіцентр К",null,null,null,0,null,null,"цемент",2.8]
[null,"Епіцентр К",null,null,null,0,null,null,"труби металеві",8.9]
[null,"Епіцентр К",null,null,null,0,null,null,"лампи LED",3.9]
[null,"Епіцентр К",null,null,null,0,null,null,"провод",8.6999999999999993]
[null,"Епіцентр К",null,null,null,0,null,null,"миючі",31.3]
[null,"Епіцентр К",null,20,"дезинф.засоби",20,null,null,"дезинф.засоби",20]
[3,"ТОВ \"Електромедсистем\"",null,5.8,"кабель",5.8,null,null,"кабель",5.8]
[null,null,null,35,"ранорозширювачі",35,null,null,"ранорозширювачі",35]
[4,"ТОВ \"Роллотект\"",null,3.2,"ролети",3.2,null,null,"ролети",3.2]
[5,"ТОВ \"Теспро\"",null,35,"вак.пробірки",35,null,null,"вак.пробірки",35]
[6,"ТОВ \"Асека\"",null,263.60000000000002,"затискач",263.60000000000002,null,null,"затискач",263.60000000000002]
[7,"ФО \"Близнюк\"",null,6.2,"набори лабораторні",6.2,null,null,"набори лабораторні",6.2]
[8,"ТОВ \" МТІ -сервіс\"",null,3.4,"акумулятор. батареї",3.4,null,null,"акумулятор. батареї",3.4]
[9,"ФОП \"Пацкан\"",null,50,"харчування",50,null,null,"харчування",50]
[10,"ФОП \"Челик СофЮр\"",null,6,"леза",6,null,null,"леза",6]
[11,"ТОВ \"Медична техніка\"",null,3.4,"кабель ЕКГ",3.4,null,null,"кабель ЕКГ",3.4]
[12,"ТОВ \"ОАД\"",null,20,"крани кутові",20,null,null,"крани кутові",20]
[13,"ДП\"Вікна -Прок\"",null,15,"жалюзі",15,null,null,"жалюзі",15]
[14," ФОП \" Васьки\"",null,65,"послуги",65,null,null,"послуги",65]
[null,null,null,null,null,0]
[null,null,null,null,null,0]
[null,"ВСЬОГО по закладу",{"$f":"SUM(C7:C31)","v":0},{"$f":"SUM(D7:D31)","v":615.49999999999989},null,615.49999999999989,null,{"$f":"SUM(H7:H31)","v":0},null,{"$f":"SUM(J7:J31)","v":615.49999999999989},{"$f":"C32-H32","v":0}]
[]
[]
[null,"Керівник установи"]
[null,null,null,null,null,"(підпис)           (ініціали і прізвище) "]
[null,"Головний бухгалтер"]
[null,null,null,null,null,"(підпис)           (ініціали і прізвище) "]

{"sheet":"кмцрп","index":1,"n_rows":41,"n_cols":13,"rows_kept":41,"cut":false,"hidden":false,"merged":[[37,6,37,7],[39,6,39,7],[0,12,0,14],[1,12,1,15],[2,1,2,9],[3,0,3,10],[4,0,5,0],[4,1,5,1],[4,2,4,4],[4,5,5,5],[4,6,4,9],[4,10,5,10]]}
[null,null,null,null,null,null,null,null,null,null,null,null,"          Додаток до листа"]
[null,null,null,null,null,null,null,null,null,null,null,null,"         від 01.04.2019 №061-3533"]
[null,"ІНФОРМАЦІЯ                                                                                                                                                                                                                                                                                                                                                                                                                    про надходження і використання благодійних пожертв від фізичних та юридичних осіб                                                                                                                                                     Київського міського центру репродуктивної та перинатальної медицини за IІI квартал 2020 року "]
["                                                                                                                                            найменування закладу охорони здоров′я"]
["№ пп","Найменування юридичної особи (або позначення фізичної особи)","Благодійні пожертви, що були отримані закладом охорони здоров'я від фізичних та юридичних осіб",null,null,"Всього отримано благодійних пожертв, тис. грн","Використання закладом охорони здоров'я благодійних пожертв, отриманих у грошовій (товари і послуг) формі",null,null,null,"Залишок невикористаних грошових коштів, товарів та послуг на кінець звітного періоду,            тис. грн"]
[null,null,"В грошовій форм, тис. грн","В  натуральній формі (товари і послуги),    тис. грн","Перелік товарів і послуг в натуральній формі (канцтовари, господарські товари, будівельні товари, медикаменти та перев'язувальні матеріали, продукти харчування, м\"який інвентар, основні засоби та інші)",null,"Напрямки використання у грошовій формі (стаття витрат)","Сума, тис. грн","Перелік використаних товарів та послуг у натуральній формі  (канцтовари, господарські товари, будівельні товари, медикаменти та перев'язувальні матеріали, продукти харчування, м\"який інвентар, основні засоби та інші)","Сума,          тис. грн"]
[1,"Фонд сприяння народжуваності в Україні (ПП \"Медіта\")",null,{"$f":"20.213+3.441+20.987","v":44.640999999999998},"медикаменти,вироби мед.призначення",{"$f":"SUM(C7,D7)","v":44.640999999999998},null,null,"медикаменти,вироби мед.призначення",{"$f":"F7","v":44.640999999999998}]
[null,"КНП \"КМЦК\"",null,{"$f":"7.829+1.893+10.786+1.485+3.381+1.485","v":26.858999999999998},"компоненти і препарати крові",{"$f":"SUM(C8,D8)","v":26.858999999999998},null,null,"компоненти і препарати крові",26.858999999999998]
[null,"ТОВ \"Стоунхендж\"",null,{"$f":"86","v":86},"Промивач для мікропланшетів",86,null,null,"Промивач для мікропланшетів",86]
[null,"КНП\"Перинатальний центр міста Києва\"",null,{"$f":"69.278+11.159","v":80.437000000000012},"Октаплекс, Імуноглобулін",80.437000000000012,null,null,"Октаплекс, Імуноглобулін",80.437000000000012]
[null,"БФ\"Твоя опора\"",null,{"$f":"658.87","v":658.87}," Апарат штучної вентиляції легень",658.87,null,null," Апарат штучної вентиляції легень",658.87]
[null,"ФОП Бодров Е.Е.",null,{"$f":"215","v":215},"Аналізатор електролітів та газів крові",215,null,null,"Аналізатор електролітів та газів крові",215]
[2,"Фізична особа",248.68600000000001,null,null,248.68600000000001]
[null,null,{"$cut":{"chars":32767,"head":"                                                                                                                                                                                                                                                                                                                                                                                                                                                                                                                                                                                                                                                                                                                                                                                                                                                                                                                                                                                                                                                                                                                                                                                                                                                                                                                                                                                                                                                                                                                                                                                                                                                                                                                                                                                                                                                                                                                                                                                                                                                                                                                                                                                                                                                                                                                                                                                                                                                                                                                                                                                                                                                                                                                                                                                                                                                                                                                                                                                                                                                                                                                                                                                                                                                                                                                                                                                                                                                                                                                                                                                                                                                                                                                                                                                                                                                                                                                                                                                                                                                                                                                                                                                                                                                                "}},null,null,0]
[null,null,null,null,null,null,2210,{"$f":"14.388","v":14.388},"миючі засоби"]
[]
[null,null,null,null,null,0,2220,{"$f":"20.8+16.354+21.463+21.463+14.311+12+0.595+0.109","v":107.09499999999998},"медикаменти"]
[null,null,null,null,null,0,2220,{"$f":"98.955","v":98.954999999999998},"засоби дезінфікуючі"]
[null,null,null,null,null,0,2220,{"$f":"6.6+0.502","v":7.1019999999999994},"реактиви лабораторні"]
[null,null,null,null,null,0,2220,{"$f":"49.868+19.937+3.577+13.144","v":86.52600000000001},"вироби мед.призначення"]
[null,null,null,null,null,0,2220,{"$f":"6.93","v":6.93},"маска медична"]
[null,null,null,null,null,0,2220,{"$f":"29.155","v":29.155000000000001},"Медичні гази"]
[null,null,null,null,null,0,2220,{"$f":"6.998","v":6.9980000000000002},"крафт-папір"]
[null,null,null,null,null,0,2220,{"$f":"39.606","v":39.606000000000002},"Рукавички"]
[]
[null,null,null,null,null,0,2240,{"$f":"2.8+2.4+4.505","v":9.7049999999999983},"обслуг.комп.та оф.техніки"]
[null,null,null,null,null,0,2240,{"$f":"9.602+9.602","v":19.204000000000001},"технічне обслуговування ліфтів"]
[null,null,null,null,null,0,2240,{"$f":"2.21+2.21+2.21+2.21","v":8.84},"тхнічне обслуг.сис-ми рег.опалення"]
[null,null,null,null,null,0,2240,{"$f":"4.545+4.545","v":9.09},"тех.обслуг.пожеж.сиг-ції"]
[null,null,null,null,null,0,2240,{"$f":"2.34+0.65+7.128","v":10.118},"програмне забезпечення"]
[null,null,null,null,null,0,2240,{"$f":"3.9+3.9+3.9","v":11.7},"охоронні послуги"]
[null,null,null,null,null,0,2240,{"$f":"6.75+3.51","v":10.26},"поточ.ремонт мед.обладнання"]
[null,null,null,null,null,0,2240,{"$f":"7.2+7.2","v":14.4},"знеш.небезпеч.відход."]
[null,null,null,null,null,0]
[null,"ВСЬОГО по закладу",{"$f":"SUM(C7:C34)","v":248.68600000000001},{"$f":"SUM(D7:D34)","v":1111.807},null,1360.4929999999999,null,{"$f":"SUM(H7:H34)","v":490.07199999999995},null,{"$f":"SUM(J7:J34)","v":1111.807},{"$f":"C35-H35","v":-241.38599999999994}]
[null,null,null,null," "]
[]
[null,"Голова комісії з реорганізації",null,null,null,null,"В.В.Камінський"]
[null,null,null,null,null,"(підпис)           (ініціали і прізвище) "]
[null,"Член комвсії",null,null,null,null,"Л.В. Іванець"]
[null,null,null,null,null,"(підпис)           (ініціали і прізвище) "]

{"sheet":"кмкоц","index":2,"n_rows":82,"n_cols":13,"rows_kept":82,"cut":false,"hidden":false,"merged":[[78,6,78,7],[80,6,80,7],[2,1,2,9],[3,0,3,10],[4,0,5,0],[4,1,5,1],[4,2,4,4],[4,5,5,5],[4,6,4,9],[4,10,5,10]]}
[null,null,null,null,null,null,null,null,null,null,null,null,"          Додаток до листа"]
[null,null,null,null,null,null,null,null,null,null,null,null,"             від ________ 2018 № ______"]
[null,"ІНФОРМАЦІЯ                                                                                                                                                                                                                                                                                                                                                                                                                    про надходження і використання благодійних пожертв від фізичних та юридичних осіб                                                                                                                                                     Київський міський клінічний онкологічний центр за 3 квартал 2020 року "]
["                                                                                                                                            найменування закладу охорони здоров′я"]
["№ пп","Найменування юридичної особи (або позначення фізичної особи)","Благодійні пожертви, що були отримані закладом охорони здоров'я від фізичних та юридичних осіб",null,null,"Всього отримано благодійних пожертв, тис. грн","Використання закладом охорони здоров'я благодійних пожертв, отриманих у грошовій (товари і послуг) формі",null,null,null,"Залишок невикористаних грошових коштів, товарів та послуг на кінець звітного періоду,            тис. грн"]
[null,null,"В грошовій форм, тис. грн","В  натуральній формі (товари і послуги),    тис. грн","Перелік товарів і послуг в натуральній формі (канцтовари, господарські товари, будівельні товари, медикаменти та перев'язувальні матеріали, продукти харчування, м\"який інвентар, основні засоби та інші)",null,"Напрямки використання у грошовій формі (стаття витрат)","Сума,          тис. грн","Перелік використаних товарів та послуг у натуральній формі  (канцтовари, господарські товари, будівельні товари, медикаменти та перев'язувальні матеріали, продукти харчування, м\"який інвентар, основні засоби та інші)","Сума,          тис. грн"]
[1,"Фізичні особи",4952.3999999999996,null,null,{"$f":"C7","v":4952.3999999999996}]
[2,"ТОВ Алсі ЛТД",9,null,null,9]
[3,"БФ Таблеточки",{"$f":"5+15","v":20},null,null,20]
[4,"Укргазбанк",65.599999999999994,null,null,65.599999999999994,2240,2.9,"касове обслуговування"]
[5,"ТОВ Димлен",null,null,null,null,2210,7.2,"морозильна камера"]
[6,"ТОВ МЦФЕР Україна",null,null,null,null,2240,4.9000000000000004,"Інформаційно-консульт. Послуги"]
[7,"ТОВ Катран",null,null,null,null,2210,5.8,"меблі"]
[8,"ФОП Харченко",null,null,null,null,2210,13.6,"меблі"]
[null,"ТОВ Інфотрейд",null,null,null,null,2210,2.52,"стрічка 24мм"]
[9,"ТОВ Екомед",null,null,null,null,2220,7,"медикаменти "]
[10,"ТОВ фірма Технокомплекс",null,null,null,{"$f":"SUM(C17,D17)","v":0},2220,20,"одяг протиепідемічний",{"$f":"F17","v":0}]
[11,"Фоп Вишняк",null,null,null,{"$f":"SUM(C18,D18)","v":0},2220,7,"медикаменти ",{"$f":"F18","v":0}]
[12,"ТД Волес",null,null,null,null,2220,{"$f":"3.3+4.76","v":8.0599999999999987},"реактиви"]
[13,"ФОП Колодницький",null,null,null,null,2220,98.9,"реактиви"]
[14,"Тов Лабікс",null,null,null,null,2220,70.400000000000006,"реактиви"]
[15,"Фоп Кримова",null,null,null,null,2220,12.4,"пробірки"]
[{"$f":"A22+1","v":16},"ТОВ АЛСІ ЛТД",null,null,null,null,2220,147.66999999999999,"флакони мед."]
[{"$f":"A23+1","v":17},"ФОП Гладун М.Ю.",null,null,null,null,2220,124.15,"набори ІФА"]
[18,"ТОВ \"АТ Каргіл\"",null,{"$f":"9.3+27.6+57.9","v":94.800000000000011},"медикаменти",{"$f":"SUM(C25,D25)","v":94.800000000000011},2220,null,"медикаменти ",{"$f":"F25","v":94.800000000000011}]
[19,"БФ Відродження",null,199.83,"медикаменти",{"$f":"119.92+79.91","v":199.82999999999998},2220,null,"медикаменти ",199.83]
[20,"ТОВ Юрія Фарм",null,{"$f":"7.7+28.8+22.1","v":58.6}," медикаменти",{"$f":"SUM(C27,D27)","v":58.6},2220,null,"медикаменти ",{"$f":"F27","v":58.6}]
[21,"БФ Педіатри проти раку.",null,32.200000000000003,"медикаменти",{"$f":"SUM(C28,D28)","v":32.200000000000003},2220,null,"медикаменти ",{"$f":"F28","v":32.200000000000003}]
[22,"ТОВ Гледфарм",null,33.4,"медикаменти",{"$f":"SUM(C29,D29)","v":33.4},2220,null,"медикаменти ",{"$f":"F29","v":33.4}]
[23,"Фізична особа",null," ","медикаменти",{"$f":"SUM(C30,D30)","v":0},null,null,null,{"$f":"F30","v":0}]
[24,"ФОП Череватенко",null,64.7,"медикаменти",64.7,2220,null,"медикаменти ",{"$f":"F31","v":64.7}]
[25,"ФОП Предерій",null,1.9,"медикаменти",{"$f":"SUM(C32,D32)","v":1.9},2220,null,"медикаменти ",{"$f":"F32","v":1.9}]
[26,"ТОВ\"ІСТ ВЕСТ БІОФАРМА\"",null,9.6,"медикаменти",9.6,2220,null,"медикаменти ",9.6]
[27,"ГО\"Афіни.Жінки проти раку\"",null,{"$f":"21.5+26.5","v":48},"медикаменти",48,2220,null,"медикаменти ",48]
[28,"БО\"БФ \"СВОЇ\"",null,298.7,"медикаменти",298.7,2220,null,"медикаменти ",298.7]
[29,"ТОВ Медичний центр М.Т.К.",null,7.22,"медикаменти",7.22,2220,null,"медикаменти ",7.22]
[30,"БФ СВЕТР",null,24.85,"медикаменти",24.85,2220,null,"медикаменти ",24.85]
[31,"БФ\"З вірою в майбутнє дітей\"",null,4.5,"медикаменти",4.5,2220,null,"медикаменти ",4.5]
[32,"БФ\"Сучасне село та місто\"",null,20.010000000000002,"медикаменти",20.010000000000002,2220,null,"медикаменти ",20.010000000000002]
[33,"ПАТ\"Лекхім-Харків",null,25.68,"медикаменти",25.68,2220,null,"медикаменти ",25.68]
[34,"ТОВ\"Нутриція Укр\"",null,5.65,"медикаменти",5.65,2220,null,"медикаменти ",5.65]
[35,"ФОП Аксенова Л.Ю.",null,4.83,"медикаменти",4.83,2220,null,"медикаменти ",4.83]
[36,"БФ Свої",null,0.79,"візок ",0.79,2210,null,"мікропіпетка",0.79]
[37,"БО Фундація прямої доп.",null,null,"госп. товари",0,2210,null,"госп. товари",0]
[38,"БФ Миротворці України",null,null,"госп. товари",0,2210,null,"госп. товари",0]
[39,"Фізична особа",null,0.39,"термометрир",0.39,2210,null,{"$f":"E46","v":"термометрир"},0.39]
[40,"ТОВ Медицина",null,null,"проект тарифів",null,2240,173.1,{"$f":"E47","v":"проект тарифів"},0]
[41,"ГІОЦ",null,null,"послуги з супровд. Програм.",null,2240,50,"послуги з супровд. Програм.",0]
[42,"Тов Меркурий",null,null,"підписка",null,2210,13.9,"Підписка"]
[43,"Комісаров ",null,null,"Замки, ключі, петлі",null,2210,7.1,"Замки, ключі, петлі",0]
[44,"ФОП Ратієв",null,null,"діагностика устаткув.",null,2240,24.8,{"$f":"E51","v":"діагностика устаткув."},0]
[45,"ПП Агенція Ірис",null,null,"Аплікатор",null,2210,9.6,{"$f":"E52","v":"Аплікатор"}]
[46,"ФОП Короленко",null,null,null,null,2210,3.8,"Ролети"]
[47,"Омелія Сервіс",null,null,null,null,2210,6.1,"госп товари"]
[48,"Кудла ",null,null,"Послуги з обробки",null,2240,4.4000000000000004,"Послуги з обробки",0]
[49,"УПЦ Печерська Лавра",null,16.399999999999999,"овочі",{"$f":"SUM(C56,D56)","v":16.399999999999999},2230,null,{"$f":"E56","v":"овочі"},{"$f":"D56","v":16.399999999999999}]
[50,"Фізична особа",null,3.8,"меблі",{"$f":"SUM(C57,D57)","v":3.8},2210," ",{"$f":"E57","v":"меблі"},3.8]
[51,"Бф педиатри проти раку",null,9.6,"електроди",9.6,2210,null,"електроди",9.6]
[52,"НМЦ Будквалифкадри",null,null,"навчання",null,2282,1.3]
[53,"ТОВ Єврокопицентр",null,null,"ремонт техніки",null,2240,2.5]
[54,"ТОВ Центр информац. Технол.",null,null,"инф. Консульт посл",null,2240,13]
[55,"ТОВ Олимпмедскрвіс",null,null,"ремонт обладнання",null,2240,13]
[56,"ТОВ Лексстатусгруп",null,null,"оцінка майна",null,2240,194.5]
[57,"Фоп Рябінкін",null,null,"стер. Бокс",null,3110,13.3]
[58,"ПРаТ \"Княжна Вієнна….\"",null,null,"страхування",null,2240,2.2000000000000002,"страхування"]
[59,"ТОВ \"Адвентумбуд\"",null,null,"очищення території від грунту",null,null,49.6,"очищення території від грунту"]
[60,"КНП \"Лікарня №7\"",null,null,"проф.огляд",null,2240,23.4,{"$f":"E67","v":"проф.огляд"}]
[61,"ТОВ \"Дімлен\"",null,null,"пральна машина",null,2210,7,{"$f":"E68","v":"пральна машина"}]
[62,"ТОВ \"Кріогенсервіс\"",null,null,"послуги",null,2240,0.4,"послуги"]
[63,"Центр системи безпеки",null,null,"с-ма безпеки",null,2240,21.2,"с-ма безпеки"]
[64,"КП \"ГІОЦ\"",null,null,"супров.програми",null,2240,11.2,"супров.програми"]
[65,"КНП \"КДЦ\"Святош. р-ну\"",null,null,"проф.огляд",null,2240,5.9,"проф.огляд"]
[66,"ДП \"СДО-ЦСУДБЕ\"",null,null,"експертиза кошторису",null,2240,4,"експертиза кошторису"]
[67,"НЦ МПП Буфкваліфкадри",null,null,"навчання",null,2282,1.3,"навчання"]
[68,"ТОВ ПК Інжиніринг",null,null,"послуги з ремонту",null,2240,16.5,"послуги з ремонту"]
[69,"Центр медстат",null,0.45,"листи",0.5,2210,null,"листи",0.45]
[70,"ДКСУ Святошинськогорайону",null,null,"адмінпослуги",null,2800,24.3,"адмінпослуги"]
[null,"ВСЬОГО по закладу",{"$f":"SUM(C7:C77)","v":5047},{"$f":"SUM(D7:D77)","v":965.9},null,{"$f":"SUM(F7:F77)","v":6012.9500000000007},null,{"$f":"SUM(H7:H77)","v":1229.9000000000001},null,{"$f":"SUM(J7:J77)","v":965.9},{"$f":"C78+D78-H78-J78","v":3817.1}]
[null,"Керівник установи",null,null,null,null,null,null,"Клюсов О.М."]
["                                                                                                                                                                                       (підпис)           (ініціали і прізвище) "]
[null,"Головний бухгалтер",null,null,null,null,null,null,"Мамонова Т.Й."]
[null,null,null,null,null,"(підпис)           (ініціали і прізвище) "]

{"sheet":"кмкл17","index":3,"n_rows":59,"n_cols":13,"rows_kept":59,"cut":false,"hidden":false,"merged":[[52,6,52,7],[54,6,54,7],[0,12,0,14],[1,12,1,15],[2,1,2,9],[3,0,3,10],[4,0,5,0],[4,1,5,1],[4,2,4,4],[4,5,5,5],[4,6,4,9],[4,10,5,10]]}
[null,null,null,null,null,null,null,null,null,null,null,null,"          Додаток до листа"]
[null,null,null,null,null,null,null,null,null,null,null,null,"         від ________ 2020 № ______"]
[null,"ІНФОРМАЦІЯ                                                                                                                                                                                                                                                                                                                                                                                                                    про надходження і використання благодійних пожертв від фізичних та юридичних осіб                                                                                                                                                     __КНП   \"КИЇВСЬКА МІСЬКА КЛІНІЧНА ЛІКАРНЯ №17\"_за_ІІІ___квартал_2020_року "]
["                                                                                                                                            найменування закладу охорони здоров′я"]
["№ пп","Найменування юридичної особи (або позначення фізичної особи)","Благодійні пожертви, що були отримані закладом охорони здоров'я від фізичних та юридичних осіб",null,null,"Всього отримано благодійних пожертв, тис. грн","Використання закладом охорони здоров'я благодійних пожертв, отриманих у грошовій (товари і послуг) формі",null,null,null,"Залишок невикористаних грошових коштів, товарів та послуг на кінець звітного періоду,            тис. грн"]
[null,null,"В грошовій форм, тис. грн","В  натуральній формі (товари і послуги),    тис. грн","Перелік товарів і послуг в натуральній формі (канцтовари, господарські товари, будівельні товари, медикаменти та перев'язувальні матеріали, продукти харчування, м\"який інвентар, основні засоби та інші)",null,"Напрямки використання у грошовій формі (стаття витрат)","Сума,          тис. грн","Перелік використаних товарів та послуг у натуральній формі  (канцтовари, господарські товари, будівельні товари, медикаменти та перев'язувальні матеріали, продукти харчування, м\"який інвентар, основні засоби та інші)","Сума,          тис. грн"]
[null,"КНП \"Київський міський центр крові\"",null,{"$f":"43.7+33.5+27.4","v":104.6},"медикаменти",{"$f":"SUM(C7,D7)","v":104.6},2210,{"$f":"38+0.4+10","v":48.4},"госп.товари, орг.техніка",20.5]
[null,"Фізична особа",143,0.8,"м\"який інвентар",{"$f":"SUM(C8,D8)","v":143.80000000000001},2220,{"$f":"6.7+35.2","v":41.900000000000006},"медикаменти та перев'язувальні матеріали",{"$f":"168.5","v":168.5}]
[null,null,null,null,"комп\"ютерне обладнання",0,2240,{"$f":"1+35.2+42.3+0.1","v":78.599999999999994},null,78.599999999999994]
[null,null,null,null,"побут.техніка",0,3110,null,"м'який інвентар"]
[null,null,null,4.2,"мед.обладнання",4.2,null,null,"ОЗ "]
[null,"БО \"100відсотків життя\"",null,2.8,"м\"який інвентар",2.8,null,null,"послуги"]
[null,"БО \"Твоя опораї\"",null,{"$f":"270.2-156.9","v":113.29999999999998},"мед.обладнання",113.29999999999998,null,null,"меблі"]
[null,"БО \"100відсотків життя\"",null,3,"медикаменти",3,null,null,"медичне обладнання"]
[null,"БФ родини Жебрівських",null,10.8,"медикаменти",10.8,null,null,"побутова техніка"]
[null,null,null,null,"мед.обладнання",0]
[null,"Товариство Червоний Хрест",null,8.1999999999999993,"продукти",8.1999999999999993]
[null,"ДП \"КК \"Рошен\"",null,395.7,"медикаменти",395.7]
[null,"ПрАТ\"ФФ \"Дарниця\"",null,13,"медикаменти",13]
[null,"БО \"Благодійний Фонд\" \"Свої\"",null,2.2999999999999998,"побут.техніка",2.2999999999999998]
[null,"МБФ \"Сприяння розвитку медицини\"",null,16.100000000000001,"меблі",16.100000000000001]
[null,"БФ \"Твоя опора\"",null,22.5,"мед.обладнання",22.5]
[null,null,null,null,null,0]
[null,null,null,null,null,0]
[null,null,null,null,null,0]
[null,null,null,null,null,0]
[null,null,null,null,null,0]
[null,null,null,null,null,0]
[null,null,null,null,null,0]
[null,null,null,null,null,0]
[null,null,null,null,null,0]
[null,null,null,null,null,0]
[null,null,null,null,null,0]
[null,null,null,null,null,0]
[null,null,null,null,null,0]
[null,null,null,null,null,0]
[null,null,null,null,null,0]
[null,null,null,null,null,0]
[null,null,null,null,null,0]
[null,null,null,null,null,0]
[null,null,null,null,null,0]
[null,null,null,null,null,0]
[null,null,null,null,null,0]
[null,null,null,null,null,0]
[null,null,null,null,null,0]
[null,null,null,null,null,0]
[null,null,null,null,null,0]
[null,null,null,null,null,0]
[null,null,null,null,null,0]
[null,"ВСЬОГО по закладу",{"$f":"SUM(C7:C49)","v":143},{"$f":"SUM(D7:D49)","v":697.3},null,840.3,null,{"$f":"SUM(H7:H49)","v":168.9},null,{"$f":"SUM(J7:J49)","v":267.60000000000002},{"$f":"C50-H50","v":-25.900000000000006}]
[]
[]
[null,"Керівник установи",null,null,null,null,"Т.Барановська "]
[null,null,null,null,null,"(підпис)           (ініціали і прізвище) "]
[null,"Головний бухгалтер",null,null,null,null,"Е.Урденко"]
[null,null,null,null,null,"(підпис)           (ініціали і прізвище) "]
[]
[]
[null,"Виконавець: Урденко Е.","528-57-93"]

{"sheet":"чорноб","index":4,"n_rows":55,"n_cols":11,"rows_kept":55,"cut":false,"hidden":false,"merged":[[51,6,51,7],[52,5,52,7],[53,6,53,7],[54,5,54,7],[0,10,0,12],[1,10,1,13],[2,1,2,9],[3,0,3,10],[4,0,5,0],[4,1,5,1],[4,2,4,4],[4,5,5,5],[4,6,4,9],[4,10,5,10]]}
[null,null,null,null,null,null,null,null,null,null,"          Додаток до листа"]
[null,null,null,null,null,null,null,null,null,null,"         Від 02.10.2020 №061-9869"]
[null,"                                                                                                    ІНФОРМАЦІЯ                                                                                                                                                                                                                                                                                                                                                                               про надходження і використання благодійних пожертв від фізичних та юридичних осіб  КНП “Київський міський центр радіаційного захисту населення від наслідків Чорнобильської катастрофи  за  ІІІ  квартал 2020року "]
["                                                                                                                                            найменування закладу охорони здоров′я"]
["№ пп","Найменування юридичної особи (або позначення фізичної особи)","Благодійні пожертви, що були отримані закладом охорони здоров'я від фізичних та юридичних осіб",null,null,"Всього отримано благодійних пожертв, тис. грн","Використання закладом охорони здоров'я благодійних пожертв, отриманих у грошовій (товари і послуг) формі",null,null,null,"Залишок невикористаних грошових коштів, товарів та послуг на кінець звітного періоду,            тис. грн"]
[null,null,"В грошовій форм, тис. грн","В  натуральній формі (товари і послуги),    тис. грн","Перелік товарів і послуг в натуральній формі (канцтовари, господарські товари, будівельні товари, медикаменти та перев'язувальні матеріали, продукти харчування, м\"який інвентар, основні засоби та інші)",null,"Напрямки використання у грошовій формі (стаття витрат)","Сума,          тис. грн","Перелік використаних товарів та послуг у натуральній формі  (канцтовари, господарські товари, будівельні товари, медикаменти та перев'язувальні матеріали, продукти харчування, м\"який інвентар, основні засоби та інші)","Сума,          тис. грн"]
[1,"Фізична особа Луцюк О.П.",null,12.7,"Предмети, матеріали та інвентар",{"$f":"SUM(C7,D7)","v":12.7},null,null,{"$f":"E7","v":"Предмети, матеріали та інвентар"},{"$f":"D7","v":12.7}]
[2,"Фізична особа Войтович Г.В.",null,12.27,"Медикаменти та перев”язувальні матеріали",12.27,null,null,{"$f":"E8","v":"Медикаменти та перев”язувальні матеріали"},{"$f":"D8","v":12.27}]
[3,"Фізичні особи ",55.9,null,null,55.9]
[null,null,null,null,null,0]
[null,null,null,null,null,0]
[null,null,null,null,null,0]
[null,null,null,null,null,0]
[null,null,null,null,null,0]
[null,null,null,null,null,0]
[null,null,null,null,null,0]
[null,null,null,null,null,0]
[null,null,null,null,null,0]
[null,null,null,null,null,0]
[null,null,null,null,null,0]
[null,null,null,null,null,0]
[null,null,null,null,null,0]
[null,null,null,null,null,0]
[null,null,null,null,null,0]
[null,null,null,null,null,0]
[null,null,null,null,null,0]
[null,null,null,null,null,0]
[null,null,null,null,null,0]
[null,null,null,null,null,0]
[null,null,null,null,null,0]
[null,null,null,null,null,0]
[null,null,null,null,null,0]
[null,null,null,null,null,0]
[null,null,null,null,null,0]
[null,null,null,null,null,0]
[null,null,null,null,null,0]
[null,null,null,null,null,0]
[null,null,null,null,null,0]
[null,null,null,null,null,0]
[null,null,null,null,null,0]
[null,null,null,null,null,0]
[null,null,null,null,null,0]
[null,null,null,null,null,0]
[null,null,null,null,null,0]
[null,null,null,null,null,0]
[null,null,null,null,null,0]
[null,null,null,null,null,0]
[null,null,null,null,null,0]
[null,null,null,null,null,0]
[null,"ВСЬОГО по закладу",{"$f":"SUM(C7:C49)","v":55.9},{"$f":"SUM(D7:D49)","v":24.97},null,80.87,null,{"$f":"SUM(H7:H49)","v":0},null,{"$f":"SUM(J7:J49)","v":24.97},{"$f":"C50-H50","v":55.9}]
[]
[null,"В.о.директора",null,null,null,null,"Олофінська Н.М."]
[null,null,null,null,null,"(підпис)           (ініціали і прізвище) "]
[null,"Головний бухгалтер",null,null,null,null,"Дерій А.Ю."]
[null,null,null,null,null,"(підпис)           (ініціали і прізвище) "]

{"sheet":"центр хірургії ока","index":5,"n_rows":56,"n_cols":13,"rows_kept":56,"cut":false,"hidden":false,"merged":[[52,6,52,7],[54,6,54,7],[0,12,0,14],[1,12,1,15],[2,1,2,9],[3,0,3,10],[4,0,5,0],[4,1,5,1],[4,2,4,4],[4,5,5,5],[4,6,4,9],[4,10,5,10]]}
[null,null,null,null,null,null,null,null,null,null,null,null,"          Додаток до листа"]
[null,null,null,null,null,null,null,null,null,null,null,null,"         від ________ 2020 № ______"]
[null,"ІНФОРМАЦІЯ                                                                                                                                                                                                                                                                                                                                                                                                                    про надходження і використання благодійних пожертв від фізичних та юридичних осіб                                                                                                                                                     Київська міська клінічна офтальмологічна лікарня \"Центр мікрохірургії ока\" за ІІІ квартал 2020 року "]
["                                                                                                                                            найменування закладу охорони здоров′я"]
["№ пп","Найменування юридичної особи (або позначення фізичної особи)","Благодійні пожертви, що були отримані закладом охорони здоров'я від фізичних та юридичних осіб",null,null,"Всього отримано благодійних пожертв, тис. грн","Використання закладом охорони здоров'я благодійних пожертв, отриманих у грошовій (товари і послуг) формі",null,null,null,"Залишок невикористаних грошових коштів, товарів та послуг на кінець звітного періоду,            тис. грн"]
[null,null,"В грошовій форм, тис. грн","В  натуральній формі (товари і послуги),    тис. грн","Перелік товарів і послуг в натуральній формі (канцтовари, господарські товари, будівельні товари, медикаменти та перев'язувальні матеріали, продукти харчування, м\"який інвентар, основні засоби та інші)",null,"Напрямки використання у грошовій формі (стаття витрат)","Сума,          тис. грн","Перелік використаних товарів та послуг у натуральній формі  (канцтовари, господарські товари, будівельні товари, медикаменти та перев'язувальні матеріали, продукти харчування, м\"який інвентар, основні засоби та інші)","Сума,          тис. грн"]
[1,"Комунальне підприємство \"Інженерний центр \"ВК КМДА",0,1734.6,"основні засоби",{"$f":"SUM(C7,D7)","v":1734.6},3110,null,"основні засоби",1734.6]
[null,null,null,null,null,{"$f":"SUM(C8,D8)","v":0}]
[null,null,null,null,null,0]
[null,null,null,null,null,0]
[null,null,null,null,null,0]
[null,null,null,null,null,0]
[null,null,null,null,null,0]
[null,null,null,null,null,0]
[null,null,null,null,null,0]
[null,null,null,null,null,0]
[null,null,null,null,null,0]
[null,null,null,null,null,0]
[null,null,null,null,null,0]
[null,null,null,null,null,0]
[null,null,null,null,null,0]
[null,null,null,null,null,0]
[null,null,null,null,null,0]
[null,null,null,null,null,0]
[null,null,null,null,null,0]
[null,null,null,null,null,0]
[null,null,null,null,null,0]
[null,null,null,null,null,0]
[null,null,null,null,null,0]
[null,null,null,null,null,0]
[null,null,null,null,null,0]
[null,null,null,null,null,0]
[null,null,null,null,null,0]
[null,null,null,null,null,0]
[null,null,null,null,null,0]
[null,null,null,null,null,0]
[null,null,null,null,null,0]
[null,null,null,null,null,0]
[null,null,null,null,null,0]
[null,null,null,null,null,0]
[null,null,null,null,null,0]
[null,null,null,null,null,0]
[null,null,null,null,null,0]
[null,null,null,null,null,0]
[null,null,null,null,null,0]
[null,null,null,null,null,0]
[null,null,null,null,null,0]
[null,null,null,null,null,0]
[null,null,null,null,null,0]
[null,"ВСЬОГО по закладу",{"$f":"SUM(C7:C49)","v":0},{"$f":"SUM(D7:D49)","v":1734.6},null,1734.6,null,{"$f":"SUM(H7:H49)","v":0},null,{"$f":"SUM(J7:J49)","v":1734.6},{"$f":"C50-H50","v":0}]
[]
[]
[null,"Заступник головного лікаря з амбулаторно-поліклінічної роботи",null,null,null,null,"Лява В.Б."]
[null,null,null,null,null,"(підпис)           (ініціали і прізвище) "]
[null,"Головний бухгалтер",null,null,null,null,"Ляшенко К.І."]
[null,null,null,null,null,"(підпис)           (ініціали і прізвище) "]

{"sheet":"цсм","index":6,"n_rows":56,"n_cols":13,"rows_kept":56,"cut":false,"hidden":false,"merged":[[52,6,52,7],[54,6,54,7],[0,12,0,14],[1,12,1,15],[2,1,2,9],[3,0,3,10],[4,0,5,0],[4,1,5,1],[4,2,4,4],[4,5,5,5],[4,6,4,9],[4,10,5,10]]}
[null,null,null,null,null,null,null,null,null,null,null,null,"          Додаток до листа"]
[null,null,null,null,null,null,null,null,null,null,null,null,"         від ________ 2020 № ______"]
[null,"ІНФОРМАЦІЯ                                                                                                                                                                                                                                                                                                                                                                                                                    про надходження і використання благодійних пожертв від фізичних та юридичних осіб КНП \"Центр спортивної медицини міста Києва\" за 3 квартал 2020 року "]
["                                                                                                                                            найменування закладу охорони здоров′я"]
["№ пп","Найменування юридичної особи (або позначення фізичної особи)","Благодійні пожертви, що були отримані закладом охорони здоров'я від фізичних та юридичних осіб",null,null,"Всього отримано благодійних пожертв, тис. грн","Використання закладом охорони здоров'я благодійних пожертв, отриманих у грошовій (товари і послуг) формі",null,null,null,"Залишок невикористаних грошових коштів, товарів та послуг на кінець звітного періоду,            тис. грн"]
[null,null,"В грошовій форм, тис. грн","В  натуральній формі (товари і послуги),    тис. грн","Перелік товарів і послуг в натуральній формі (канцтовари, господарські товари, будівельні товари, медикаменти та перев'язувальні матеріали, продукти харчування, м\"який інвентар, основні засоби та інші)",null,"Напрямки використання у грошовій формі (стаття витрат)","Сума,          тис. грн","Перелік використаних товарів та послуг у натуральній формі  (канцтовари, господарські товари, будівельні товари, медикаменти та перев'язувальні матеріали, продукти харчування, м\"який інвентар, основні засоби та інші)","Сума,          тис. грн"]
[1,"Благодійні внески від фізичних осіб",449.74,null,null,{"$f":"SUM(C7,D7)","v":449.74},2210,3.76,"Вертикальні жалюзі, таблички для лікарських кабінетів."]
[null,null,null,null,null,{"$f":"SUM(C8,D8)","v":0},2220,302.89,"медичні препарати,лікарські засоби,вироби медичного призначення,тест-смужки лабораторні,дренажні системи,шовний матеріал,кисень медичний,дезинфекційні засоби,індикаторні смужки."]
[null,null,null,null,null,0,2230,27.41,"постачання готової іжі (продукти харчування)"]
[null,null,null,null,null,0,2240,112.15,"Технічне обслуговування ліфтів,технічне обслуговування та ремонт медичного обладнання,послуги по лабораторних дослідженнях,дератизаціії,дезинсекції,абонплата з доступу до мережі Інтернету,комісія банку за обслуговування зарплатних карткових рах.працівників,поточні ремонтні роботи,послуги по виготовленню звіту справедливої вартості будівлі."]
[null,null,null,null,null,0]
[null,null,null,null,null,0]
[null,null,null,null,null,0]
[null,null,null,null,null,0]
[null,null,null,null,null,0]
[null,null,null,null,null,0]
[null,null,null,null,null,0]
[null,null,null,null,null,0]
[null,null,null,null,null,0]
[null,null,null,null,null,0]
[null,null,null,null,null,0]
[null,null,null,null,null,0]
[null,null,null,null,null,0]
[null,null,null," ",null,0]
[null,null,null,null,null,0]
[null,null,null,null,null,0]
[null,null,null,null,null,0]
[null,null,null,null,null,0]
[null,null,null,null,null,0]
[null,null,null,null,null,0]
[null,null,null,null,null,0]
[null,null,null,null,null,0]
[null,null,null,null,null,0]
[null,null,null,null,null,0]
[null,null,null,null,null,0]
[null,null,null,null,null,0]
[null,null,null,null,null,0]
[null,null,null,null,null,0]
[null,null,null,null,null,0]
[null,null,null,null,null,0]
[null,null,null,null,null,0]
[null,null,null,null,null,0]
[null,null,null,null,null,0]
[null,null,null,null,null,0]
[null,null,null,null,null,0]
[null,null,null,null,null,0]
[null,null,null,null,null,0]
[null,null,null,null,null,0]
[null,null,null,null,null,0]
[null,"ВСЬОГО по закладу",{"$f":"SUM(C7:C49)","v":449.74},{"$f":"SUM(D7:D49)","v":0},null,449.74,null,{"$f":"SUM(H7:H49)","v":446.21000000000004},null,{"$f":"SUM(J7:J49)","v":0},{"$f":"C50-H50","v":3.5299999999999727}]
[]
[]
[null,"Керівник установи",null,null,null,null,"В.В.Манжалій"]
[null,null,null,null,null,"(підпис)           (ініціали і прізвище) "]
[null,"Головний бухгалтер",null,null,null,null,"К.В.Москаленко"]
[null,null,null,null,null,"(підпис)           (ініціали і прізвище) "]

{"sheet":"кцткм","index":7,"n_rows":21,"n_cols":11,"rows_kept":21,"cut":false,"hidden":false,"merged":[[14,6,14,7],[16,6,16,7],[1,1,1,9],[2,0,2,10],[3,0,4,0],[3,1,4,1],[3,2,3,4],[3,5,4,5],[3,6,3,9],[3,10,4,10]]}
[]
[null,"ІНФОРМАЦІЯ                                                                                                                                                                                                                                                                                                                                                                                                                    про надходження і використання благодійних пожертв від фізичних та юридичних осіб                                                                                                                                                     КНП \"Київський центр трансплантації кісткового мозку\" за  ІІІ квартал 2020 року "]
["                                                                                                                                            найменування закладу охорони здоров′я"]
["№ пп","Найменування юридичної особи (або позначення фізичної особи)","Благодійні пожертви, що були отримані закладом охорони здоров'я від фізичних та юридичних осіб",null,null,"Всього отримано благодійних пожертв, тис. грн","Використання закладом охорони здоров'я благодійних пожертв, отриманих у грошовій (товари і послуг) формі",null,null,null,"Залишок невикористаних грошових коштів, товарів та послуг на кінець звітного періоду,            тис. грн"]
[null,null,"В грошовій форм, тис. грн","В  натуральній формі (товари і послуги),    тис. грн","Перелік товарів і послуг в натуральній формі (канцтовари, господарські товари, будівельні товари, медикаменти та перев'язувальні матеріали, продукти харчування, м\"який інвентар, основні засоби та інші)",null,"Напрямки використання у грошовій формі (стаття витрат)","Сума,          тис. грн","Перелік використаних товарів та послуг у натуральній формі  (канцтовари, господарські товари, будівельні товари, медикаменти та перев'язувальні матеріали, продукти харчування, м\"який інвентар, основні засоби та інші)","Сума,          тис. грн"]
[1,"ФОП Ічкаленко В.В.",null,3,"вир.мед.призначення",{"$f":"C6+D6","v":3}]
[2,"ТОВ \"Мега-Поліграф\"",null,43.91,"основні засоби",{"$f":"SUM(C7,D7)","v":43.91},3110,104.97,"основні засоби"]
[3,"Фізична особа",1.08,null,null,{"$f":"SUM(C8,D8)","v":1.08},2240,3,"послуги"]
[null,null,null,null,null,{"$f":"SUM(C9,D9)","v":0}]
[null,"ВСЬОГО по закладу",{"$f":"SUM(C6:C9)","v":1.08},{"$f":"SUM(D6:D9)","v":46.91},null,{"$f":"SUM(C10,D10)","v":47.989999999999995},null,{"$f":"SUM(H6:H9)","v":107.97},null,{"$f":"SUM(J6:J9)","v":0},{"$f":"C10-H10","v":-106.89}]
[]
[]
[]
[]
[null,"В.о.директора",null,null,null,null,"С.А.Ціва"]
[null,null,null,null,null,"(підпис)           (ініціали і прізвище) "]
[null,"Головний бухгалтер",null,null,null,null,"Ригалюк О.І."]
[null,null,null,null,null,"(підпис)           (ініціали і прізвище) "]
[]
[]
[null,"Виконавець: Аврашко О.А. тел.451-15-80"]

{"sheet":"кмцдн","index":8,"n_rows":21,"n_cols":11,"rows_kept":21,"cut":false,"hidden":false,"merged":[[16,6,16,7],[18,6,18,7],[0,12,0,14],[1,12,1,15],[2,1,2,9],[3,0,3,10],[4,0,5,0],[4,1,5,1],[4,2,4,4],[4,5,5,5],[4,6,4,9],[4,10,5,10]]}
[null,null,null,null,null,null,null,null,null,"Додаток до листа"]
[null,null,null,null,null,null,null,null,null,"від 06.07.2020 № 60"]
[null,"ІНФОРМАЦІЯ                                                                                                                                                                                                                                                                                                                                                                                                                    про надходження і використання благодійних пожертв від фізичних та юридичних осіб                                                                                                                                                      КНП \"Київський міський центр дитячої нейрохірургії\" за  ІІІ  квартал  2020  року "]
["                                                                                                                                            найменування закладу охорони здоров′я"]
["№ пп","Найменування юридичної особи (або позначення фізичної особи)","Благодійні пожертви, що були отримані закладом охорони здоров'я від фізичних та юридичних осіб",null,null,"Всього отримано благодійних пожертв, тис. грн","Використання закладом охорони здоров'я благодійних пожертв, отриманих у грошовій (товари і послуг) формі",null,null,null,"Залишок невикористаних грошових коштів, товарів та послуг на кінець звітного періоду,            тис. грн"]
[null,null,"В грошовій форм, тис. грн","В  натуральній формі (товари і послуги),    тис. грн","Перелік товарів і послуг в натуральній формі (канцтовари, господарські товари, будівельні товари, медикаменти та перев'язувальні матеріали, продукти харчування, м\"який інвентар, основні засоби та інші)",null,"Напрямки використання у грошовій формі (стаття витрат)","Сума,          тис. грн","Перелік використаних товарів та послуг у натуральній формі  (канцтовари, господарські товари, будівельні товари, медикаменти та перев'язувальні матеріали, продукти харчування, м\"який інвентар, основні засоби та інші)","Сума,          тис. грн"]
["1.","БФ \"Я майбутнє України\"","-",107.75,"медобладнання",{"$f":"SUM(C7,D7)","v":107.75},null,null,"медобладнання",107.75]
["2.","БО \"БФ ім. Св. Луки (Войно-Ясенецького)\"","-",97.07,"обладнання",97.07,null,null,"обладнання",97.07]
["3.","БО \"БФ ім. Св. Луки (Войно-Ясенецького)\"","-",37,"медобладнання",37,null,null,"медобладнання",37]
["4.","БО \"ВБФ \"Крона\"","-",145.56,"медобладнання",145.56,null,null,"медобладнання",145.56]
["5.","ТОВ \"Нова Пошта\"","-",230.78,"медобладнання",230.78,null,null,"медобладнання",230.78]
["6.","БФ \"Мама і немовля\"","-",81,"медобладнання",81,null,null,"медобладнання",81]
["7.","ТОВ \"ЕПАМ СИСТЕМЗ\"","-",28,"оргтехніка",28,null,null,"оргтехніка",28]
[null,"ВСЬОГО по закладу",{"$f":"SUM(C7:C13)","v":0},{"$f":"SUM(D7:D13)","v":727.16},null,{"$f":"SUM(F7:F13)","v":727.16},null,{"$f":"SUM(H7:H13)","v":0},null,{"$f":"SUM(J7:J13)","v":727.16},{"$f":"C14-H14","v":0}]
[]
[]
[null,"В.о.директора",null,null,null,null,"К.С.Новакович"]
[null,null,null,null,null,"(підпис)           (ініціали і прізвище) "]
[null,"Головний бухгалтер",null,null,null,null,"О.Г.Болтенко"]
[null,null,null,null,null,"(підпис)           (ініціали і прізвище) "]
[null,"Ірина Григоренко  097 158 02 78"]

{"sheet":"академія здоров","index":9,"n_rows":56,"n_cols":13,"rows_kept":56,"cut":false,"hidden":false,"merged":[[52,6,52,7],[54,6,54,7],[2,1,2,9],[3,0,3,10],[4,0,5,0],[4,1,5,1],[4,2,4,4],[4,5,5,5],[4,6,4,9],[4,10,5,10]]}
[null,null,null,null,null,null,null,null,null,null,null,null,"          Додаток до листа"]
[null,null,null,null,null,null,null,null,null,null,null,null,"             від ________ 2020 № ______"]
[null,"ІНФОРМАЦІЯ                                                                                                                                                                                                                                                                                                                                                                                                                    про надходження і використання благодійних пожертв від фізичних та юридичних осіб                                                                                                                                                     КНП \"Академія здоров'я людини\"_за ІІІ квартал 2020 року "]
["                                                                                                                                            найменування закладу охорони здоров′я"]
["№ пп","Найменування юридичної особи (або позначення фізичної особи)","Благодійні пожертви, що були отримані закладом охорони здоров'я від фізичних та юридичних осіб",null,null,"Всього отримано благодійних пожертв, тис. грн","Використання закладом охорони здоров'я благодійних пожертв, отриманих у грошовій (товари і послуг) формі",null,null,null,"Залишок невикористаних грошових коштів, товарів та послуг на кінець звітного періоду,            тис. грн"]
[null,null,"В грошовій форм, тис. грн","В  натуральній формі (товари і послуги),    тис. грн","Перелік товарів і послуг в натуральній формі (канцтовари, господарські товари, будівельні товари, медикаменти та перев'язувальні матеріали, продукти харчування, м\"який інвентар, основні засоби та інші)",null,"Напрямки використання у грошовій формі (стаття витрат)","Сума,          тис. грн","Перелік використаних товарів та послуг у натуральній формі  (канцтовари, господарські товари, будівельні товари, медикаменти та перев'язувальні матеріали, продукти харчування, м\"який інвентар, основні засоби та інші)","Сума,          тис. грн"]
[1,"Фізична особа",1231,null,null,{"$f":"SUM(C7,D7)","v":1231},2240,80,"касове обслуг, поточний ремонт , послуги"]
[2,null,null,null,null,{"$f":"SUM(C8,D8)","v":0},2220,435.1,"медикаменти"]
[null,null,null,null,null,0,2210,5.8,"господарські товари"]
[null,null,null,null,null,0]
[null,null,null,null,null,0]
[null,null,null,null,null,0]
[null,null,null,null,null,0]
[null,null,null,null,null,0]
[null,null,null,null,null,0]
[null,null,null,null,null,0]
[null,null,null,null,null,0]
[null,null,null,null,null,0]
[null,null,null,null,null,0]
[null,null,null,null,null,0]
[null,null,null,null,null,0]
[null,null,null,null,null,0]
[null,null,null,null,null,0]
[null,null,null,null,null,0]
[null,null,null,null,null,0]
[null,null,null,null,null,0]
[null,null,null,null,null,0]
[null,null,null,null,null,0]
[null,null,null,null,null,0]
[null,null,null,null,null,0]
[null,null,null,null,null,0]
[null,null,null,null,null,0]
[null,null,null,null,null,0]
[null,null,null,null,null,0]
[null,null,null,null,null,0]
[null,null,null,null,null,0]
[null,null,null,null,null,0]
[null,null,null,null,null,0]
[null,null,null,null,null,0]
[null,null,null,null,null,0]
[null,null,null,null,null,0]
[null,null,null,null,null,0]
[null,null,null,null,null,0]
[null,null,null,null,null,0]
[null,null,null,null,null,0]
[null,null,null,null,null,0]
[null,null,null,null,null,0]
[null,null,null,null,null,0]
[null,null,null,null,null,0]
[null,"ВСЬОГО по закладу",{"$f":"SUM(C7:C49)","v":1231},{"$f":"SUM(D7:D49)","v":0},null,1231,null,{"$f":"SUM(H7:H49)","v":520.9},null,{"$f":"SUM(J7:J49)","v":0},{"$f":"C50-H50","v":710.1}]
[]
[]
[null,"Заступник директора з економічних питань",null,null,null,null,"Сова І.К."]
[null,null,null,null,null,"(підпис)           (ініціали і прізвище) "]
[null,"Головний бухгалтер",null,null,null,null,"Затуливітер О.В."]
[null,null,null,null,null,"(підпис)           (ініціали і прізвище) "]

{"sheet":"кмпл","index":10,"n_rows":56,"n_cols":13,"rows_kept":56,"cut":false,"hidden":false,"merged":[[52,6,52,7],[54,6,54,7],[0,12,0,14],[1,12,1,15],[2,1,2,9],[3,0,3,10],[4,0,5,0],[4,1,5,1],[4,2,4,4],[4,5,5,5],[4,6,4,9],[4,10,5,10]]}
[null,null,null,null,null,null,null,null,null,null,null,null,"          Додаток до листа"]
[null,null,null,null,null,null,null,null,null,null,null,null,"         від ________ 2020 № ______"]
[null,"ІНФОРМАЦІЯ                                                                                                                                                                                                                                                                                                                                                                                                                 про надходження і використання благодійних пожертв від фізичних та юридичних осіб                                                                                                                   КНП \"Київська міська психоневрологічна лікарня №3\"   за 3 квартал 2020 року "]
["                                                                                                                                            найменування закладу охорони здоров′я"]
["№ пп","Найменування юридичної особи (або позначення фізичної особи)","Благодійні пожертви, що були отримані закладом охорони здоров'я від фізичних та юридичних осіб",null,null,"Всього отримано благодійних пожертв, тис. грн","Використання закладом охорони здоров'я благодійних пожертв, отриманих у грошовій (товари і послуг) формі",null,null,null,"Залишок невикористаних грошових коштів, товарів та послуг на кінець звітного періоду,            тис. грн"]
[null,null,"В грошовій форм, тис. грн","В  натуральній формі (товари і послуги),    тис. грн","Перелік товарів і послуг в натуральній формі (канцтовари, господарські товари, будівельні товари, медикаменти та перев'язувальні матеріали, продукти харчування, м\"який інвентар, основні засоби та інші)",null,"Напрямки використання у грошовій формі (стаття витрат)","Сума,          тис. грн","Перелік використаних товарів та послуг у натуральній формі  (канцтовари, господарські товари, будівельні товари, медикаменти та перев'язувальні матеріали, продукти харчування, м\"який інвентар, основні засоби та інші)","Сума,          тис. грн"]
[1,"Фізична особа",331.6,5.6,"миючі засоби",{"$f":"SUM(C7,D7)","v":337.20000000000005},2111,170.8,"миючі засоби",5.6]
[null,null,null,5,"інвентар, меблі",{"$f":"SUM(C8,D8)","v":5},2120,23.2,"інвентар, меблі",5]
[null,null,null,null,null,0,2210,8.6999999999999993]
[null,null,null,null,null,0,2230,24.1]
[null,null,null,null,null,0,2240,64.599999999999994]
[null,null,null,null,null,0,2282,8.1999999999999993]
[null,null,null,null,null,0,2800,1.8]
[null,null,null,null,null,0]
[null,null,null,null,null,0]
[null,null,null,null,null,0]
[null,null,null,null,null,0]
[null,null,null,null,null,0]
[null,null,null,null,null,0]
[null,null,null,null,null,0]
[null,null,null,null,null,0]
[null,null,null,null,null,0]
[null,null,null,null,null,0]
[null,null,null,null,null,0]
[null,null,null,null,null,0]
[null,null,null,null,null,0]
[null,null,null,null,null,0]
[null,null,null,null,null,0]
[null,null,null,null,null,0]
[null,null,null,null,null,0]
[null,null,null,null,null,0]
[null,null,null,null,null,0]
[null,null,null,null,null,0]
[null,null,null,null,null,0]
[null,null,null,null,null,0]
[null,null,null,null,null,0]
[null,null,null,null,null,0]
[null,null,null,null,null,0]
[null,null,null,null,null,0]
[null,null,null,null,null,0]
[null,null,null,null,null,0]
[null,null,null,null,null,0]
[null,null,null,null,null,0]
[null,null,null,null,null,0]
[null,null,null,null,null,0]
[null,null,null,null,null,0]
[null,null,null,null,null,0]
[null,null,null,null,null,0]
[null,null,null,null,null,0]
[null,"ВСЬОГО по закладу",{"$f":"SUM(C7:C49)","v":331.6},{"$f":"SUM(D7:D49)","v":10.6},null,342.20000000000005,null,{"$f":"SUM(H7:H49)","v":301.39999999999998},null,{"$f":"SUM(J7:J49)","v":10.6},{"$f":"C50-H50","v":30.200000000000045}]
[]
[]
[null,"Керівник установи",null,null,null,null,"Ірина ВРУБЛЕВСЬКА"]
[null,null,null,null,null,"(підпис)           (ініціали і прізвище) "]
[null,"Головний бухгалтер",null,null,null,null,"Олена ЯЩЕНКО"]
[null,null,null,null,null,"(підпис)           (ініціали і прізвище) "]

{"sheet":"кмтл1","index":11,"n_rows":52,"n_cols":11,"rows_kept":52,"cut":false,"hidden":false,"merged":[[48,6,48,7],[50,6,50,7],[2,0,2,10],[3,0,3,10],[4,0,5,0],[4,1,5,1],[4,2,4,4],[4,5,5,5],[4,6,4,9],[4,10,5,10]]}
[null,null,null,null,null,null,null,null,null,"          Додаток №1  до листа"]
[null,null,null,null,null,null,null,null,null,"         від 05.10.2020 р. № 061-9869"]
["ІНФОРМАЦІЯ                                                                                                                                                                                                                                                                                                                                                                                                                    про надходження і використання благодійних пожертв від фізичних та юридичних осіб                                                                                                                                                     __Комунальне некомерційне підприємство  \"Київська міська туберкульозна лікарня №1 з диспансерним відділенням\" виконавчого органу Київської міської ради (Київської міської державної адміністрації)_за 3 квартал 2020 року (за період з 01 липня 2020 рю по 30 вересня 2020 р.)"]
["                                                                                                                                            найменування закладу охорони здоров′я"]
["№ пп","Найменування юридичної особи (або позначення фізичної особи)","Благодійні пожертви, що були отримані закладом охорони здоров'я від фізичних та юридичних осіб",null,null,"Всього отримано благодійних пожертв, тис. грн","Використання закладом охорони здоров'я благодійних пожертв, отриманих у грошовій (товари і послуг) формі",null,null,null,"Залишок невикористаних грошових коштів, товарів та послуг на кінець звітного періоду,            тис. грн"]
[null,null,"В грошовій форм, тис. грн","В  натуральній формі (товари і послуги),    тис. грн","Перелік товарів і послуг в натуральній формі (канцтовари, господарські товари, будівельні товари, медикаменти та перев'язувальні матеріали, продукти харчування, м\"який інвентар, основні засоби та інші)",null,"Напрямки використання у грошовій формі (стаття витрат)","Сума,          тис. грн","Перелік використаних товарів та послуг у натуральній формі  (канцтовари, господарські товари, будівельні товари, медикаменти та перев'язувальні матеріали, продукти харчування, м\"який інвентар, основні засоби та інші)","Сума,          тис. грн"]
[1,"Благодійна організація \"Фонд Олени Пінчук\"",null,{"$f":"3.4+10.5+16.608","v":30.508000000000003},"витратні матеріали ",{"$f":"SUM(C7,D7)","v":30.508000000000003},null,null,"витратні матеріали ",{"$f":"3.4+10.5+16.608","v":30.508000000000003}]
[2,"Благодійний фонд                    \"100 відсотів життя. Київський регіон\" ",null,5,"опромінювач ультрафіолетовий",{"$f":"SUM(C8,D8)","v":5},null,null,"опромінювач ультрафіолетовий",5]
[]
[null,null,null,null,null,{"$f":"SUM(C10,D10)","v":0}]
[null,null,null,null,null,0]
[null,null,null,null,null,0]
[null,null,null,null,null,0]
[null,null,null,null,null,0]
[null,null,null,null,null,0]
[null,null,null,null,null,0]
[null,null,null,null,null,0]
[null,null,null,null,null,0]
[null,null,null,null,null,0]
[null,null,null,null,null,0]
[null,null,null,null,null,0]
[null,null,null,null,null,0]
[null,null,null,null,null,0]
[null,null,null,null,null,0]
[null,null,null,null,null,0]
[null,null,null,null,null,0]
[null,null,null,null,null,0]
[null,null,null,null,null,0]
[null,null,null,null,null,0]
[null,null,null,null,null,0]
[null,null,null,null,null,0]
[null,null,null,null,null,0]
[null,null,null,null,null,0]
[null,null,null,null,null,0]
[null,null,null,null,null,0]
[null,null,null,null,null,0]
[null,null,null,null,null,0]
[null,null,null,null,null,0]
[null,null,null,null,null,0]
[null,null,null,null,null,0]
[null,null,null,null,null,0]
[null,null,null,null,null,0]
[null,null,null,null,null,0]
[null,null,null,null,null,0]
[null,null,null,null,null,0]
[null,"ВСЬОГО по закладу",{"$f":"SUM(C7:C45)","v":0},{"$f":"SUM(D7:D45)","v":35.508000000000003},null,35.508000000000003,null,{"$f":"SUM(H7:H45)","v":0},null,{"$f":"SUM(J7:J45)","v":35.508000000000003},{"$f":"C46-H46","v":0}]
[]
[]
[null,"В.о. директора",null,null,null,null,"С.Г. Павленко"]
[null,null,null,null,null,"(підпис)           (ініціали і прізвище) "]
[null,"Головний бухгалтер",null,null,null,null,"В.М. Колесник"]
[null,null,null,null,null,"(підпис)           (ініціали і прізвище) "]

{"sheet":"кмкшвл","index":12,"n_rows":61,"n_cols":11,"rows_kept":61,"cut":false,"hidden":false,"merged":[[57,6,57,7],[59,6,59,7],[0,8,0,10],[1,8,1,11],[2,1,2,9],[3,0,3,10],[4,0,5,0],[4,1,5,1],[4,2,4,4],[4,5,5,5],[4,6,4,9],[4,10,5,10]]}
[null,null,null,null,null,null,null,null,"          Додаток до листа"]
[null,null,null,null,null,null,null,null,"         від ________ 2020 № ______"]
[null,"ІНФОРМАЦІЯ  про надходження і використання благодійних пожертв від фізичних та юридичних осіб по КНП \"  КИЇВСЬКА МІСЬКА  КЛІНІЧНА ШКІРНО-ВЕНЕРОЛОГІЧНА ЛІКАРНЯ\"   за ІІІ  квартал  2020 рік"]
["                                                                                                                                            найменування закладу охорони здоров′я"]
["№ пп","Найменування юридичної особи (або позначення фізичної особи)","Благодійні пожертви, що були отримані закладом охорони здоров'я від фізичних та юридичних осіб",null,null,"Всього отримано благодійних пожертв, тис. грн","Використання закладом охорони здоров'я благодійних пожертв, отриманих у грошовій (товари і послуг) формі",null,null,null,"Залишок невикористаних грошових коштів, товарів та послуг на кінець звітного періоду,            тис. грн"]
[null,null,"В грошовій форм, тис. грн","В  натуральній формі (товари і послуги),    тис. грн","Перелік товарів і послуг в натуральній формі (канцтовари, господарські товари, будівельні товари, медикаменти та перев'язувальні матеріали, продукти харчування, м\"який інвентар, основні засоби та інші)",null,"Напрямки використання у грошовій формі (стаття витрат)","Сума,          тис. грн","Перелік використаних товарів та послуг у натуральній формі  (канцтовари, господарські товари, будівельні товари, медикаменти та перев'язувальні матеріали, продукти харчування, м\"який інвентар, основні засоби та інші)","Сума,          тис. грн"]
[1,"БО\"100відсотків життя.Київський регіон\"",null,1.3,"канцелярські товари",{"$f":"SUM(C7,D7)","v":1.3},2210,1.3,"канцелярські товари",1.3]
[1,"БО\"100відсотків життя.Київський регіон\"",null,20,"медикаменти",{"$f":"SUM(C8,D8)","v":20},2220,20,"медикаменти",20]
[3,"ТОВ \"ГЛЕДФАРМ ЛТД\"",null,6.2,"медикаменти",{"$f":"SUM(C9,D9)","v":6.2},2220,6.2,"медикаменти",6.2]
[null,"БО МБВ \"Давай допоможемо\"",null,23.5,"медикаменти",null,2220,23.5,"медикаменти",23.5]
[null,"ТОВ \"Ромстал Україна\"",null,8.1999999999999993,"медикаменти",null,null,8.1999999999999993,"медикаменти",8.1999999999999993]
[4,"ТОВ \"Міррор плюс\"",null,0.9,"продукти харчування",{"$f":"SUM(C12,D12)","v":0.9},2230,0.9,"продукти харчування",0.9]
[5,"Фізичні особи",null,49.4,"мед. обладнання",{"$f":"SUM(C13,D13)","v":49.4},3110,49.4,"мед. обладнання",49.4]
[6,"Фізичні особи",739.5,null,null,{"$f":"C14","v":739.5},2210,77.2,"господарчі товари",77.2]
[7,"ФОП Іщенко Д.В.",0.5,null,null,{"$f":"C15","v":0.5},2220,32.6,"медикаменти",32.6]
[8,"ТОВ \"ІНВЕСТИЦІЇ ТА РОЗВИТОК\"",1000,null,null,1000,2240,211.6,"оплата послуг(т/о ліфтів, комісія банку,страхування, супров. програм)",211.6]
[9,"ТОВ \"ДОММЕД\"",1,null,null,1,2250,1.1000000000000001,"видатки на відрядження",1.1000000000000001]
[10,"ФОП Поясик О.Г.",1,null,null,1,2275,12.8,"утилізація відходів",12.8]
[11,"ТОВ КФЗ ",15,null,null,15,3110,1170.7,"мед. обладнання",1170.7]
[null,null,null,null,null,0]
[]
[]
[null,null,null,null,null,0]
[null,null,null,null,null,0]
[null,null,null,null,null,0]
[null,null,null,null,null,0]
[null,null,null,null,null,0]
[null,null,null,null,null,0]
[null,null,null,null,null,0]
[null,null,null,null,null,0]
[null,null,null,null,null,0]
[null,null,null,null,null,0]
[null,null,null,null,null,0]
[null,null,null,null,null,0]
[null,null,null,null,null,0]
[null,null,null,null,null,0]
[null,null,null,null,null,0]
[null,null,null,null,null,0]
[null,null,null,null,null,0]
[null,null,null,null,null,0]
[null,null,null,null,null,0]
[null,null,null,null,null,0]
[null,null,null,null,null,0]
[null,null,null,null,null,0]
[null,null,null,null,null,0]
[null,null,null,null,null,0]
[null,null,null,null,null,0]
[null,null,null,null,null,0]
[null,null,null,null,null,0]
[null,null,null,null,null,0]
[null,null,null,null,null,0]
[null,null,null,null,null,0]
[null,null,null,null,null,0]
[null,null,null,null,null,0]
[null,"ВСЬОГО по закладу",{"$f":"SUM(C8:C54)","v":1757},{"$f":"SUM(D7:D54)","v":109.5},null,1866.5,null,{"$f":"SUM(H7:H54)","v":1615.5},null,{"$f":"SUM(J7:J54)","v":1615.5},{"$f":"C55+D55-H55","v":251}]
[]
[]
[null,"В.о. директора",null,null,null,null,"О.В. Чубар"]
[null,null,null,null,null,"(підпис)           (ініціали і прізвище) "]
[null,"Головний бухгалтер",null,null,null,null,"О.М. Галицька"]
[null,null,null,null,null,"(підпис)           (ініціали і прізвище) "]